fUST/lending_fUST_20240216
["ID","MTS","AMOUNT","RATE_DAILY","PERIOD"]
[314132797,1708015843773,-659.67,0.00032876,7]
[314132799,1708015843781,-659.67,0.00032876,7]
[314132800,1708015843791,-659.67,0.00032876,7]
[314132801,1708015843800,-659.8730353,0.00032876,7]
[314132803,1708015843809,-500.0,0.00032876,7]
[314132805,1708015843819,-500.0,0.00032876,7]
[314132807,1708015843828,-500.0,0.00032876,7]
[314132809,1708015843837,-500.0,0.00032876,7]
[314132811,1708015843846,-500.0,0.00032876,7]
[314132813,1708015843856,-500.0,0.00032876,7]
[314132815,1708015843865,-500.0,0.00032876,7]
[314132817,1708015843874,-500.0,0.00032876,7]
[314132819,1708015843883,-500.0,0.00032876,7]
[314132821,1708015843892,-302.14032212,0.00032876,7]
[314132823,1708015843902,-235.92277961,0.00032876,7]
[314132825,1708015843912,-501.76829055,0.00032876,7]
[314132827,1708015843922,-292.49912931,0.00032876,7]
[314132829,1708015843931,-533.50988695,0.00032876,7]
[314132831,1708015843940,-500.0,0.00032876,7]
[314132833,1708015843949,-500.0,0.00032876,7]
[314132835,1708015843959,-500.0,0.00032876,7]
[314132837,1708015843968,-500.0,0.00032876,7]
[314132839,1708015843977,-500.0,0.00032876,7]
[314132841,1708015843987,-500.0,0.00032876,7]
[314132843,1708015843996,-515.08897743,0.00032876,7]
[314132846,1708015844005,-500.0,0.00032876,7]
[314132848,1708015844014,-500.0,0.00032876,7]
[314132850,1708015844024,-500.0,0.00032876,7]
[314132852,1708015844033,-500.0,0.00032876,7]
[314132854,1708015844042,-500.0,0.00032876,7]
[314132856,1708015844052,-503.26011798,0.00032876,7]
[314132858,1708015844061,-500.0,0.00032876,7]
[314132860,1708015844070,-500.0,0.00032876,7]
[314132862,1708015844079,-500.0,0.00032876,7]
[314132864,1708015844088,-500.0,0.00032876,7]
[314132865,1708015844097,-500.0,0.00032876,7]
[314132867,1708015844107,-500.0,0.00032876,7]
[314132869,1708015844115,-500.0,0.00032876,7]
[314132871,1708015844125,-500.0,0.00032876,7]
[314132873,1708015844134,-500.0,0.00032876,7]
[314132875,1708015844143,-500.0,0.00032876,7]
[314132877,1708015844152,-500.0,0.00032876,7]
[314132879,1708015844161,-500.0,0.00032876,7]
[314132881,1708015844171,-522.11329078,0.00032876,7]
[314132883,1708015844179,-357.78144925,0.00032876,7]
[314132886,1708015844191,-500.0,0.00032876,7]
[314132887,1708015844201,-292.01398535,0.00032876,7]
[314132889,1708015844211,-503.20204968,0.00032876,7]
[314132891,1708015844221,-1000.0,0.00032876,2]
[314132893,1708015844230,-1000.0,0.00032876,2]
[314132895,1708015844239,-1000.0,0.00032876,2]
[314132897,1708015844249,-1000.0,0.00032876,2]
[314132899,1708015844258,-1000.0,0.00032876,2]
[314132901,1708015844268,-1000.0,0.00032876,2]
[314132903,1708015844277,-1012.69810929,0.00032876,2]
[314132905,1708015844288,-500.0,0.00032876,7]
[314132907,1708015844297,-565.12591649,0.00032876,7]
[314132910,1708015844306,-377.83158779,0.00032876,7]
[314132912,1708015844315,-412.87599848,0.00032876,7]
[314132914,1708015844325,-551.16346703,0.00032876,7]
[314132916,1708015844334,-516.51970827,0.00032876,7]
[314132917,1708015844345,-500.0,0.00032876,7]
[314132919,1708015844354,-500.0,0.00032876,7]
[314132922,1708015844364,-540.61840804,0.00032876,7]
[314132923,1708015844373,-608.77,0.00032876,7]
[314132926,1708015844383,-608.77,0.00032876,7]
[314132927,1708015844392,-608.77,0.00032876,7]
[314132929,1708015844401,-608.77,0.00032876,7]
[314132932,1708015844412,-608.77,0.00032876,7]
[314132933,1708015844422,-608.77,0.00032876,7]
[314132936,1708015844433,-608.77,0.00032876,7]
[314132938,1708015844442,-159.826059,0.00032876,2]
[314132939,1708015844452,-608.77,0.00032876,7]
[314132941,1708015844462,-608.77,0.00032876,7]
[314132943,1708015844471,-608.77,0.00032876,7]
[314132945,1708015844480,-608.77,0.00032876,7]
[314132948,1708015844491,-608.77,0.00032876,7]
[314132950,1708015844501,-608.77,0.00032876,7]
[314132951,1708015844510,-608.77,0.00032876,7]
[314132953,1708015844520,-608.77,0.00032876,7]
[314132955,1708015844529,-608.77,0.00032876,7]
[314132957,1708015844538,-608.77,0.00032876,7]
[314132959,1708015844547,-608.77,0.00032876,7]
[314132961,1708015844556,-608.77,0.00032876,7]
[314132963,1708015844565,-608.77,0.00032876,7]
[314132965,1708015844574,-608.77,0.00032876,7]
[314132967,1708015844583,-502.41251574,0.00032876,7]
[314132969,1708015844592,-608.77,0.00032876,7]
[314132978,1708015844660,-608.77,0.00032876,7]
[314132980,1708015844670,-608.97203317,0.00032876,7]
[314132982,1708015844679,-502.83232486,0.00032876,7]
[314132984,1708015844688,-634.02,0.00032876,7]
[314132986,1708015844697,-634.02,0.00032876,7]
[314132988,1708015844707,-634.02,0.00032876,7]
[314132990,1708015844716,-634.02,0.00032876,7]
[314132992,1708015844725,-634.02,0.00032876,7]
[314132994,1708015844734,-634.02,0.00032876,7]
[314132996,1708015844743,-634.02,0.00032876,7]
[314132998,1708015844752,-634.02,0.00032876,7]
[314133000,1708015844761,-634.02,0.00032876,7]
[314133002,1708015844770,-634.02,0.00032876,7]
[314133004,1708015844779,-634.02,0.00032876,7]
[314133005,1708015844789,-634.02,0.00032876,7]
[314133008,1708015844798,-634.02,0.00032876,7]
[314133010,1708015844808,-634.02,0.00032876,7]
[314133012,1708015844817,-634.02,0.00032876,7]
[314133013,1708015844826,-634.02,0.00032876,7]
[314133016,1708015844835,-502.59986416,0.00032876,7]
[314133017,1708015844844,-634.02,0.00032876,7]
[314133020,1708015844853,-634.02,0.00032876,7]
[314133022,1708015844862,-634.02,0.00032876,7]
[314133023,1708015844872,-634.02,0.00032876,7]
[314133026,1708015844881,-634.02,0.00032876,7]
[314133027,1708015844891,-634.02,0.00032876,7]
[314133029,1708015844900,-478.75763718,0.00032876,7]
[314133059,1708015845167,-155.26236282,0.00032876,7]
[314133061,1708015845176,-634.0321983,0.00032876,7]
[314133063,1708015845185,-500.0,0.00032876,7]
[314133066,1708015845195,-503.17223067,0.00032876,7]
[314133067,1708015845206,-207.53320821,0.00032876,7]
[314133079,1708015845300,-368.37442533,0.00020822,2]
[314133081,1708015845309,-250.0,0.00024834,2]
[314133083,1708015845319,-17799.94,0.00032866,3]
[314133085,1708015845329,-292.46679179,0.00032876,7]
[314133087,1708015845338,-500.0,0.00032876,7]
[314133089,1708015845350,-500.0,0.00032876,7]
[314133091,1708015845360,-500.0,0.00032876,7]
[314133093,1708015845369,-500.0,0.00032876,7]
[314133095,1708015845378,-500.0,0.00032876,7]
[314133097,1708015845387,-500.0,0.00032876,7]
[314133099,1708015845397,-500.0,0.00032876,7]
[314133101,1708015845406,-500.0,0.00032876,7]
[314133103,1708015845415,-500.0,0.00032876,7]
[314133105,1708015845424,-500.0,0.00032876,7]
[314133107,1708015845434,-500.0,0.00032876,7]
[314133109,1708015845444,-174.29668129,0.00032876,7]
[314133111,1708015845454,-500.0,0.00032876,7]
[314133113,1708015845463,-16.89207632,0.00032876,7]
[314133115,1708015845476,-459.71706458,0.00032876,7]
[314133117,1708015845488,-23.3908591,0.00032876,7]
[314133119,1708015845497,-500.0,0.00032876,7]
[314133121,1708015845506,-500.0,0.00032876,7]
[314133123,1708015845515,-500.0,0.00032876,7]
[314133125,1708015845524,-500.0,0.00032876,7]
[314133127,1708015845533,-500.0,0.00032876,7]
[314133129,1708015845542,-181.51926605,0.00032876,7]
[314133131,1708015845551,-500.0,0.00032876,7]
[314133133,1708015845560,-500.0,0.00032876,7]
[314133135,1708015845569,-500.0,0.00032876,7]
[314133137,1708015845578,-500.0,0.00032876,7]
[314133139,1708015845588,-209.48608423,0.00032876,7]
[314133142,1708015845597,-403.79557639,0.00032876,7]
[314133144,1708015845606,-430.35602578,0.00032876,2]
[314133146,1708015845616,-500.0,0.00032876,7]
[314133147,1708015845625,-500.0,0.00032876,7]
[314133150,1708015845634,-501.31406295,0.00032876,7]
[314133152,1708015845643,-500.0,0.00032876,7]
[314133154,1708015845652,-500.0,0.00032876,7]
[314133156,1708015845661,-500.0,0.00032876,7]
[314133159,1708015845673,-500.0,0.00032876,7]
[314133161,1708015845682,-500.0,0.00032876,7]
[314133163,1708015845691,-500.0,0.00032876,7]
[314133165,1708015845699,-507.61514363,0.00032876,7]
[314133167,1708015845711,-500.0,0.00032876,7]
[314133169,1708015845719,-500.0,0.00032876,7]
[314133171,1708015845729,-500.0,0.00032876,7]
[314133173,1708015845738,-500.0,0.00032876,7]
[314133175,1708015845747,-500.0,0.00032876,7]
[314133177,1708015845756,-628.25869461,0.00032876,7]
[314133179,1708015845765,-500.0,0.00032876,7]
[314133181,1708015845774,-237.61082891,0.00032876,7]
[314133183,1708015845783,-511.35561246,0.00032876,7]
[314133185,1708015845792,-500.0,0.00032876,7]
[314133187,1708015845801,-500.0,0.00032876,7]
[314133189,1708015845810,-500.0,0.00032876,7]
[314133191,1708015845818,-168.08063146,0.00032876,7]
[314133193,1708015845835,-408.96694147,0.00032876,7]
[314133195,1708015845845,-500.0,0.00032876,7]
[314133197,1708015845854,-500.0,0.00032876,7]
[314133200,1708015845863,-500.0,0.00032876,7]
[314133202,1708015845872,-198.13534654,0.00032876,7]
[314133203,1708015845881,-502.57460696,0.00032876,7]
[314133205,1708015845890,-500.0,0.00032876,7]
[314133207,1708015845899,-180.42367986,0.00032876,7]
[314133209,1708015845908,-500.0,0.00032876,7]
[314133211,1708015845917,-500.0,0.00032876,7]
[314133213,1708015845927,-500.0,0.00032876,7]
[314133215,1708015845936,-500.0,0.00032876,7]
[314133217,1708015845945,-500.0,0.00032876,7]
[314133220,1708015845955,-499.85559271,0.00032876,7]
[314133221,1708015845964,-500.0,0.00032876,7]
[314133224,1708015845974,-500.0,0.00032876,7]
[314133226,1708015845983,-500.0,0.00032876,7]
[314133227,1708015845991,-500.0,0.00032876,7]
[314133228,1708015846000,-500.0,0.00032876,7]
[314133229,1708015846010,-500.0,0.00032876,7]
[314133230,1708015846019,-613.43903521,0.00032876,7]
[314133231,1708015846027,-502.66022835,0.00032876,7]
[314133232,1708015846036,-503.59983805,0.00032876,7]
[314133233,1708015846045,-519.17079685,0.00032876,7]
[314133234,1708015846115,-195.99445327,0.00032876,7]
[314133236,1708015846124,-4572.85103073,0.00032876,10]
[314134258,1708016059059,154.87609812,0.000176,2]
[314134363,1708017032448,-161.5894657,0.000209,2]
[314134365,1708017032458,-748.43227698,0.00021,2]
[314134367,1708017032467,-195.12237937,0.00021,2]
[314134369,1708017032479,-526.34940583,0.00021,2]
[314134371,1708017032488,-3000.0,0.00021907,2]
[314134373,1708017032497,-686.8990302,0.00022026,2]
[314134375,1708017032506,-269.1910669,0.00022128,2]
[314134377,1708017032516,-1401.0491538,0.00022437,2]
[314134379,1708017032525,-2155.772829,0.00022545,2]
[314134381,1708017032534,-169.294684,0.00022576,2]
[314134383,1708017032543,-24900.0,0.00022738,2]
[314134385,1708017032552,-250.0,0.00022952,2]
[314134387,1708017032561,-171.2248221,0.000241,2]
[314134389,1708017032570,-169.747925,0.00024121,2]
[314134391,1708017032579,-166.666666,0.00024658,2]
[314134393,1708017032588,-200.0,0.00024683,7]
[314134395,1708017032597,-200.0,0.00024683,7]
[314134397,1708017032606,-3392.5992057,0.00024691,2]
[314134399,1708017032615,-14778.71624339,0.00025,10]
[314134401,1708017032624,-166.666666,0.00025235,2]
[314134403,1708017032634,-166.666666,0.00025812,2]
[314134405,1708017032643,-17800.73,0.00026171,3]
[314134407,1708017032653,-21360.88,0.00026181,3]
[314134409,1708017032662,-1364.57483801,0.00026191,2]
[314134470,1708017043435,-1722.77107722,0.00026191,2]
[314134471,1708017043444,-574.22955877,0.00026191,2]
[314134472,1708017043455,-7167.17052776,0.00026191,2]
[314134501,1708017047179,-350.0,0.00021,2]
[314134503,1708017047189,-8447.6568678,0.00026191,2]
[314134504,1708017047198,-4509.50763674,0.00026191,2]
[314134513,1708017047275,-23.42066156,0.00026191,2]
[314134515,1708017047284,-821.5046462,0.00026191,2]
[314134517,1708017047294,-166.666666,0.00026388,2]
[314134519,1708017047303,-166.666666,0.00026965,2]
[314134522,1708017047312,-200.0,0.00027151,15]
[314134524,1708017047322,-360.0,0.00027151,15]
[314134526,1708017047331,-500.0,0.00027397,2]
[314134528,1708017047339,-500.0,0.00027534,2]
[314134529,1708017047348,-166.666666,0.00027542,2]
[314134531,1708017047357,-1747.9611644,0.000279,2]
[314134534,1708017047367,-10728.3710304,0.00028,2]
[314134535,1708017047375,-321.77605016,0.00028735,2]
[314134537,1708017047385,-14833.95,0.00028825,3]
[314134540,1708017047394,-250.0,0.00028834,2]
[314134542,1708017047403,-28376.35607305,0.00028835,5]
[314134555,1708017137208,-350.0,0.00022,2]
[314134556,1708017137229,-350.0,0.00023,2]
[314134557,1708017137250,-350.0,0.00024,2]
[314134595,1708018232624,-154.92253873,0.0002388,2]
[314134596,1708018232747,-1244.604423,0.00025479,2]
[314134597,1708018232760,-3484.2675263,0.0002554,2]
[314134598,1708018232769,-250.0,0.00025632,2]
[314134599,1708018232779,-246.31129522,0.00025952,2]
[314134600,1708018232788,-166.75633,0.00026052,2]
[314134601,1708018232798,-186.16413673,0.00026091,2]
[314134602,1708018232807,-591.44771543,0.00026191,2]
[314134603,1708018232816,-7043.51750701,0.00026191,2]
[314134604,1708018232825,-1320.65953256,0.00026191,2]
[314134605,1708018232838,-537.46610352,0.00026191,2]
[314134606,1708018232847,-3000.0,0.00026232,2]
[314134607,1708018232856,-200.0,0.00026714,15]
[314134608,1708018232866,-200.0,0.00026714,15]
[314134609,1708018232875,-1747.9611644,0.00026735,2]
[314134610,1708018232884,-1375.00000003,0.00026898,3]
[314134611,1708018232894,-24900.0,0.00026918,2]
[314134612,1708018232903,-166.75633,0.00027236,2]
[314134613,1708018232912,-166.75633,0.00028419,2]
[314134614,1708018232922,-1375.00000002,0.00028486,4]
[314134615,1708018232930,-2941.61201128,0.00028815,3]
[314134616,1708018232943,-5033.80798872,0.00028815,3]
[314134618,1708018232952,-12710.54,0.00028825,3]
[314134619,1708018232961,-6129.7,0.00028825,3]
[314134621,1708018232972,-9570.5,0.00028825,3]
[314134623,1708018232981,-500.0,0.00028834,2]
[314134625,1708018232990,-10494.80883388,0.00028835,5]
[314134808,1708018238922,-11128.83509307,0.00028835,5]
[314134809,1708018238931,-500.0,0.00028971,2]
[314134810,1708018238940,-155.0,0.00029,2]
[314134811,1708018238950,-500.0,0.00029108,2]
[314134812,1708018238959,-547.03061014,0.000293,2]
[314134813,1708018238968,-200.0,0.00029385,15]
[314134814,1708018238978,-360.0,0.00029385,15]
[314134816,1708018238987,-166.75633,0.00029603,2]
[314134818,1708018238997,-321.77605016,0.00029899,2]
[314134820,1708018239005,-223.47,0.00029997,2]
[314134822,1708018239014,-223.47,0.00029997,2]
[314134824,1708018239023,-223.47,0.00029997,2]
[314134826,1708018239032,-250.0,0.00029998,2]
[314134828,1708018239041,-723.371424,0.0003,3]
[314134830,1708018239051,-37222.97364529,0.0003,30]
[314134834,1708018239087,-250505.68858539,0.0003,30]
[314134836,1708018239096,-500.0,0.0003,5]
[314134838,1708018239106,-17213.62,0.0003,4]
[314134840,1708018239115,-1375.00000002,0.00030073,4]
[314134842,1708018239125,-321.77605013,0.00030174,2]
[314134844,1708018239135,-155.0,0.0003037,2]
[314134846,1708018239144,-321.77605013,0.0003045,2]
[314134848,1708018239154,-500.0,0.00030683,2]
[314134850,1708018239163,-321.77605013,0.00030725,2]
[314134852,1708018239172,-59466.65993803,0.00031,4]
[314134854,1708018239182,-321.77605013,0.00031,2]
[314134856,1708018239190,-296.177176,0.000311,9]
[314134858,1708018239200,-153.0,0.00031233,2]
[314134860,1708018239208,-153.0,0.00031233,2]
[314134862,1708018239217,-750.0,0.00031368,2]
[314134864,1708018239227,-1000.0,0.00031552,7]
[314134866,1708018239236,-1375.00000002,0.00031661,5]
[314134868,1708018239245,-1747.9611644,0.00031735,2]
[314134870,1708018239254,-155.0,0.0003174,2]
[314134872,1708018239263,-153.0,0.00031804,2]
[314134874,1708018239274,-223.47,0.00031999,2]
[314134876,1708018239284,-1000.0,0.00032,32]
[314134878,1708018239296,-29479.96317123,0.00032,10]
[314134880,1708018239306,-177542.50630071,0.00032,15]
[314134882,1708018239314,-151.0,0.00032,2]
[314134884,1708018239323,-151.0,0.00032,2]
[314134886,1708018239332,-437.239157,0.00032,2]
[314134888,1708018239341,-437.239157,0.00032,2]
[314134890,1708018239350,-307.71616153,0.00032,2]
[314135151,1708018241938,-695.61,0.00029988,3]
[314135153,1708018241950,-2796.75314719,0.00029988,3]
[314137265,1708018831811,-6146.70626066,0.00026116,2]
[314137266,1708018831838,-1400.0,0.00026216,2]
[314137267,1708018831860,-1120.0,0.00026216,2]
[314137268,1708018902930,-10728.3710294,0.00028,2]
[314137269,1708018902950,-622.302211,0.00028225,2]
[314137270,1708018902971,-9631.859195,0.00028309,2]
[314137271,1708018902993,-250.0,0.00028475,2]
[314137272,1708018903014,-200.0,0.00028559,15]
[314137273,1708018903037,-200.0,0.00028559,15]
[314137274,1708018903061,-24900.0,0.0002862,2]
[314137275,1708018903081,-169.405119,0.00028621,2]
[314137288,1708019431775,-2187.5311812,0.00027061,2]
[314137290,1708019431785,-10680.6057732,0.00027604,2]
[314137292,1708019431794,-381.83300464,0.00027752,5]
[314137294,1708019431804,-311.151105,0.00027794,2]
[314137296,1708019431813,-170.048984,0.00027852,2]
[314137298,1708019431822,-250.0,0.00027926,2]
[314137299,1708019431831,-9133.55616244,0.00028,2]
[314137303,1708019431854,-2240.25603972,0.00028,2]
[314137306,1708019431876,-2476.0931603,0.00028,2]
[314137308,1708019431887,-8957.14423754,0.00028,2]
[314137310,1708019431897,-1003.64702236,0.00028463,2]
[314137312,1708019431906,-24900.0,0.00028464,2]
[314137314,1708019431915,-232.67510006,0.00028477,2]
[314137316,1708019431925,-151.0,0.000286,2]
[314137318,1708019431934,-1230.4807768,0.00028847,2]
[314137320,1708019431944,-155.0,0.00028896,2]
[314137322,1708019431953,-200.0,0.00029033,15]
[314137324,1708019431963,-200.0,0.00029033,15]
[314137326,1708019431978,-1622.34404705,0.00029278,6]
[314137328,1708019431987,-5580.54,0.00029337,3]
[314137330,1708019431996,-6696.65,0.00029347,3]
[314137332,1708019432005,-8035.98,0.00029357,3]
[314137334,1708019432014,-50000.0,0.00029367,5]
[314137336,1708019432023,-1621.4,0.00029747,7]
[314137338,1708019432033,-988.63496863,0.00029796,2]
[314137340,1708019432042,-988.63496862,0.00029797,2]
[314137342,1708019432051,-988.63496862,0.00029798,2]
[314137344,1708019432060,-988.63496862,0.00029799,2]
[314137346,1708019432069,-988.63496862,0.000298,2]
[314137347,1708019432079,-250.0,0.00029894,2]
[314137349,1708019432088,-500.0,0.00029894,2]
[314137351,1708019432097,-500.0,0.00029894,2]
[314137353,1708019432106,-301.58992803,0.00029894,2]
[314137355,1708019432115,-500.0,0.00029894,2]
[314137357,1708019432125,-500.0,0.00029894,2]
[314137359,1708019432134,-500.0,0.00029894,2]
[314137361,1708019432143,-226.36814607,0.00029894,2]
[314137363,1708019432153,-500.0,0.00029894,2]
[314137365,1708019432162,-500.0,0.00029894,2]
[314137367,1708019432171,-500.0,0.00029894,2]
[314137369,1708019432180,-500.0,0.00029894,2]
[314137371,1708019432189,-500.0,0.00029894,2]
[314137373,1708019432198,-500.0,0.00029894,2]
[314137374,1708019432207,-500.0,0.00029894,2]
[314137376,1708019432219,-500.0,0.00029894,2]
[314137378,1708019432228,-615.94165973,0.00029894,2]
[314137380,1708019432237,-500.0,0.00029894,2]
[314137382,1708019432246,-500.0,0.00029894,2]
[314137384,1708019432256,-500.0,0.00029894,2]
[314137386,1708019432265,-500.0,0.00029894,2]
[314137388,1708019432274,-615.94165973,0.00029894,2]
[314137390,1708019432284,-552.06354604,0.00029894,2]
[314137392,1708019432293,-615.94165973,0.00029894,2]
[314137394,1708019432303,-500.0,0.00029894,2]
[314137396,1708019432313,-615.94165973,0.00029894,2]
[314137398,1708019432323,-500.0,0.00029894,2]
[314137400,1708019432333,-500.0,0.00029894,2]
[314137402,1708019432342,-500.0,0.00029894,2]
[314137404,1708019432351,-615.94165973,0.00029894,2]
[314137406,1708019432361,-500.0,0.00029894,2]
[314137408,1708019432370,-500.0,0.00029894,2]
[314137410,1708019432379,-615.94165973,0.00029894,2]
[314137412,1708019432387,-500.0,0.00029894,2]
[314137414,1708019432396,-500.0,0.00029894,2]
[314137416,1708019432406,-615.94165973,0.00029894,2]
[314137418,1708019432418,-500.0,0.00029894,2]
[314137419,1708019432431,-615.94165973,0.00029894,2]
[314137421,1708019432441,-239.4695713,0.00029894,2]
[314137424,1708019432452,-500.0,0.00029894,2]
[314137426,1708019432463,-615.94165973,0.00029894,2]
[314137428,1708019432476,-500.0,0.00029894,2]
[314137430,1708019432485,-500.0,0.00029894,2]
[314137431,1708019432495,-500.0,0.00029894,2]
[314137433,1708019432504,-615.94165973,0.00029894,2]
[314137435,1708019432516,-500.0,0.00029894,2]
[314137438,1708019432526,-500.0,0.00029894,2]
[314137439,1708019432535,-615.94165973,0.00029894,2]
[314137441,1708019432545,-500.0,0.00029894,2]
[314137443,1708019432555,-500.0,0.00029894,2]
[314137445,1708019432564,-615.94165973,0.00029894,2]
[314137447,1708019432574,-615.94165973,0.00029894,2]
[314137449,1708019432583,-500.0,0.00029894,2]
[314137451,1708019432592,-615.94165973,0.00029894,2]
[314137453,1708019432601,-500.0,0.00029894,2]
[314137455,1708019432611,-615.94165973,0.00029894,2]
[314137457,1708019432620,-615.94165973,0.00029894,2]
[314137459,1708019432630,-500.0,0.00029894,2]
[314137461,1708019432639,-615.94165973,0.00029894,2]
[314137463,1708019432649,-500.0,0.00029894,2]
[314137465,1708019432658,-615.94165973,0.00029894,2]
[314137467,1708019432667,-500.0,0.00029894,2]
[314137469,1708019432676,-615.94165973,0.00029894,2]
[314137471,1708019432686,-615.94165973,0.00029894,2]
[314137479,1708019432786,-615.94165973,0.00029894,2]
[314137481,1708019432796,-500.0,0.00029894,2]
[314137483,1708019432807,-350.89933656,0.00029894,2]
[314137565,1708019437824,-265.04232317,0.00029894,2]
[314137567,1708019437834,-615.94165973,0.00029894,2]
[314137568,1708019437843,-500.0,0.00029894,2]
[314137570,1708019437852,-615.94165973,0.00029894,2]
[314137571,1708019437861,-615.94165973,0.00029894,2]
[314137573,1708019437872,-615.94165973,0.00029894,2]
[314137574,1708019437881,-615.94165973,0.00029894,2]
[314137576,1708019437892,-615.94165973,0.00029894,2]
[314137577,1708019437902,-615.94165973,0.00029894,2]
[314137578,1708019437911,-615.94165973,0.00029894,2]
[314137579,1708019437923,-615.94165973,0.00029894,2]
[314137580,1708019437935,-615.94165973,0.00029894,2]
[314137581,1708019437946,-615.94165973,0.00029894,2]
[314137582,1708019437958,-615.94165973,0.00029894,2]
[314137583,1708019437969,-615.94165973,0.00029894,2]
[314137584,1708019437981,-615.94165973,0.00029894,2]
[314137585,1708019437991,-615.94165973,0.00029894,2]
[314137586,1708019438001,-615.94165973,0.00029894,2]
[314137587,1708019438011,-615.94165973,0.00029894,2]
[314137588,1708019438022,-615.94165973,0.00029894,2]
[314137589,1708019438031,-615.94165973,0.00029894,2]
[314137590,1708019438040,-615.94165973,0.00029894,2]
[314137591,1708019438050,-615.94165973,0.00029894,2]
[314137592,1708019438059,-615.94165973,0.00029894,2]
[314137593,1708019438069,-615.94165973,0.00029894,2]
[314137594,1708019438078,-615.94165973,0.00029894,2]
[314137595,1708019438087,-615.94165973,0.00029894,2]
[314137596,1708019438097,-615.94165973,0.00029894,2]
[314137597,1708019438106,-615.94165973,0.00029894,2]
[314137598,1708019438116,-615.94165973,0.00029894,2]
[314137599,1708019438125,-615.94165973,0.00029894,2]
[314137600,1708019438134,-4198.82183838,0.00029894,2]
[314137601,1708019438144,-4198.82183838,0.00029894,2]
[314137602,1708019438153,-4198.82183838,0.00029894,2]
[314137603,1708019438163,-4198.82183838,0.00029894,2]
[314137604,1708019438173,-4198.82183838,0.00029894,2]
[314137605,1708019438182,-4198.82183838,0.00029894,2]
[314137606,1708019438191,-4198.82183838,0.00029894,2]
[314137607,1708019438201,-4198.82183838,0.00029894,2]
[314137608,1708019438211,-4198.82183838,0.00029894,2]
[314137609,1708019438220,-4198.82183838,0.00029894,2]
[314137610,1708019438231,-4198.82183838,0.00029894,2]
[314137611,1708019438241,-4198.82183838,0.00029894,2]
[314137612,1708019438250,-4198.82183838,0.00029894,2]
[314137613,1708019438259,-4198.82183838,0.00029894,2]
[314137614,1708019438269,-4198.82183838,0.00029894,2]
[314137615,1708019438279,-4198.82183838,0.00029894,2]
[314137616,1708019438290,-4198.82183838,0.00029894,2]
[314137617,1708019438299,-4198.82183838,0.00029894,2]
[314137618,1708019438309,-4198.82183838,0.00029894,2]
[314137619,1708019438320,-4198.82183838,0.00029894,2]
[314137620,1708019438330,-4198.82183838,0.00029894,2]
[314137621,1708019438340,-4198.82183838,0.00029894,2]
[314137622,1708019438350,-4198.82183838,0.00029894,2]
[314137623,1708019438360,-4198.82183838,0.00029894,2]
[314137624,1708019438371,-4198.82183838,0.00029894,2]
[314137625,1708019438380,-4198.82183838,0.00029894,2]
[314137626,1708019438463,-4198.82183838,0.00029894,2]
[314137627,1708019438474,-4198.82183838,0.00029894,2]
[314137628,1708019438485,-4198.82183838,0.00029894,2]
[314137629,1708019438495,-4198.82183838,0.00029894,2]
[314137630,1708019438504,-4198.82183838,0.00029894,2]
[314137631,1708019438514,-4198.82183838,0.00029894,2]
[314137632,1708019438524,-4198.82183838,0.00029894,2]
[314137633,1708019438534,-4198.82183838,0.00029894,2]
[314137634,1708019438544,-4198.82183838,0.00029894,2]
[314137635,1708019438554,-4198.82183838,0.00029894,2]
[314137636,1708019438564,-1424.20771006,0.00029898,3]
[314137637,1708019438575,-276000.0,0.00029898,2]